[Event "Titled Tuesday Blitz March 14 Early 2023"]
[White "Vokhidov, Shamsiddin"]
[Black "Ozates, Tuna"]
[WhiteFideId "14204223"]
[BlackFideId "6354521"]
[WhiteElo "2570"]
[BlackElo "2151"]
[Result "1-0"]
[Round "02"]
[TimeControl "180+2"]
[Date "2023.03.14"]
[WhiteClock "0:00:59"]
[BlackClock "0:00:29"]

1. e4 {[%clk 0:03:00]}  c5 {[%clk 0:03:00]} 2. Nf3 {[%clk 0:03:01]}  Nc6 {[%clk 0:03:00]} 3. Bb5 {[%clk 0:03:01]}  g6 {[%clk 0:03:01]} 4. Bxc6 {[%clk 0:03:01]}  bxc6 {[%clk 0:03:01]} 5. O-O {[%clk 0:03:01]}  Bg7 {[%clk 0:03:02]} 6. Re1 {[%clk 0:03:02]}  Nh6 {[%clk 0:03:03]} 7. c3 {[%clk 0:03:02]}  O-O {[%clk 0:03:03]} 8. h3 {[%clk 0:03:01]}  f5 {[%clk 0:03:03]} 9. e5 {[%clk 0:03:02]}  Nf7 {[%clk 0:03:03]} 10. d3 {[%clk 0:03:02]}  d6 {[%clk 0:02:52]} 11. Bf4 {[%clk 0:03:01]}  Qc7 {[%clk 0:02:45]} 12. d4 {[%clk 0:02:35]}  cxd4 {[%clk 0:02:43]} 13. cxd4 {[%clk 0:02:35]}  Rb8 {[%clk 0:02:30]} 14. b3 {[%clk 0:02:35]}  Nd8 {[%clk 0:02:29]} 15. Bh2 {[%clk 0:02:27]}  d5 {[%clk 0:02:21]} 16. Nc3 {[%clk 0:02:02]}  Ne6 {[%clk 0:02:20]} 17. Rc1 {[%clk 0:02:02]}  Qd7 {[%clk 0:02:13]} 18. Qd2 {[%clk 0:02:01]}  h5 {[%clk 0:02:08]} 19. Ne2 {[%clk 0:01:58]}  Kh7 {[%clk 0:02:07]} 20. Bf4 {[%clk 0:01:49]}  Rb6 {[%clk 0:02:04]} 21. Ng5+ {[%clk 0:01:48]}  Nxg5 {[%clk 0:02:04]} 22. Bxg5 {[%clk 0:01:49]}  a5 {[%clk 0:01:38]} 23. Qxa5 {[%clk 0:01:47]}  Ra6 {[%clk 0:01:38]} 24. Qd2 {[%clk 0:01:47]}  f4 {[%clk 0:01:30]} 25. Nxf4 {[%clk 0:01:41]}  Qf5 {[%clk 0:01:28]} 26. h4 {[%clk 0:01:39]}  Qg4 {[%clk 0:01:17]} 27. f3 {[%clk 0:01:37]}  Qf5 {[%clk 0:01:14]} 28. Nd3 {[%clk 0:01:33]}  Bd7 {[%clk 0:01:01]} 29. Bxe7 {[%clk 0:01:29]}  Rfa8 {[%clk 0:01:00]} 30. a4 {[%clk 0:01:27]}  Bh6 {[%clk 0:00:57]} 31. Bg5 {[%clk 0:01:25]}  Bxg5 {[%clk 0:00:57]} 32. hxg5 {[%clk 0:01:25]}  h4 {[%clk 0:00:57]} 33. e6 {[%clk 0:01:24]}  Be8 {[%clk 0:00:53]} 34. Re5 {[%clk 0:01:23]}  Qf8 {[%clk 0:00:53]} 35. Kf2 {[%clk 0:01:17]}  Kg7 {[%clk 0:00:48]} 36. Rh1 {[%clk 0:01:16]}  Rb6 {[%clk 0:00:49]} 37. Nc5 {[%clk 0:01:16]}  Rb4 {[%clk 0:00:40]} 38. Qxb4 {[%clk 0:01:14]}  Qf4 {[%clk 0:00:39]} 39. Nd3 {[%clk 0:00:59]}  Qg3+ {[%clk 0:00:39]} 40. Kf1 {[%clk 0:00:59]}  c5 {[%clk 0:00:29]} 41. Qb7+ {[%clk 0:00:59]} 1-0


[Site "https://www.chess.com"]

[Event "Titled Tuesday Blitz March 14 Early 2023"]
[White "Weetik, Vjacheslav"]
[Black "Vallejo Pons, Francisco"]
[WhiteFideId "4153472"]
[BlackFideId "2205530"]
[WhiteElo "2469"]
[BlackElo "2589"]
[Result "0-1"]
[Round "02"]
[TimeControl "180+2"]
[Date "2023.03.14"]
[WhiteClock "0:00:04"]
[BlackClock "0:00:18"]

1. d4 {[%clk 0:03:00]}  e6 {[%clk 0:02:58]} 2. e4 {[%clk 0:02:50]}  d5 {[%clk 0:02:57]} 3. exd5 {[%clk 0:02:49]}  exd5 {[%clk 0:02:57]} 4. Nf3 {[%clk 0:02:45]}  Bd6 {[%clk 0:02:57]} 5. c4 {[%clk 0:02:45]}  Nf6 {[%clk 0:02:57]} 6. Nc3 {[%clk 0:02:44]}  O-O {[%clk 0:02:55]} 7. cxd5 {[%clk 0:02:34]}  Nbd7 {[%clk 0:02:52]} 8. Bd3 {[%clk 0:02:18]}  Re8+ {[%clk 0:02:35]} 9. Be3 {[%clk 0:02:16]}  Nb6 {[%clk 0:02:36]} 10. O-O {[%clk 0:02:16]}  Bg4 {[%clk 0:02:14]} 11. h3 {[%clk 0:02:13]}  Bh5 {[%clk 0:02:13]} 12. Bg5 {[%clk 0:02:05]}  h6 {[%clk 0:02:10]} 13. Bh4 {[%clk 0:01:27]}  g5 {[%clk 0:02:08]} 14. Bg3 {[%clk 0:01:08]}  Nfxd5 {[%clk 0:02:06]} 15. Ne4 {[%clk 0:00:44]}  Bf4 {[%clk 0:01:12]} 16. Re1 {[%clk 0:00:39]}  c6 {[%clk 0:01:04]} 17. Nc5 {[%clk 0:00:33]}  Bxg3 {[%clk 0:00:52]} 18. Rxe8+ {[%clk 0:00:18]}  Qxe8 {[%clk 0:00:53]} 19. fxg3 {[%clk 0:00:19]}  Qe3+ {[%clk 0:00:50]} 20. Kh2 {[%clk 0:00:19]}  Re8 {[%clk 0:00:42]} 21. g4 {[%clk 0:00:12]}  Qf4+ {[%clk 0:00:36]} 22. g3 {[%clk 0:00:06]}  Qe3 {[%clk 0:00:35]} 23. gxh5 {[%clk 0:00:07]}  Qf2+ {[%clk 0:00:35]} 24. Kh1 {[%clk 0:00:07]}  Re3 {[%clk 0:00:24]} 25. Nh2 {[%clk 0:00:04]}  Rxg3 {[%clk 0:00:19]} 26. Ne4 {[%clk 0:00:04]}  Qg2# {[%clk 0:00:18]} 0-1


[Site "https://www.chess.com"]

[Event "Titled Tuesday Blitz March 14 Early 2023"]
[White "Tillyaev, Ulugbek"]
[Black "Makhnev, Denis"]
[WhiteFideId "14202441"]
[BlackFideId "13707647"]
[WhiteElo "2377"]
[BlackElo "2525"]
[Result "0-1"]
[Round "02"]
[TimeControl "180+2"]
[Date "2023.03.14"]
[WhiteClock "0:00:19"]
[BlackClock "0:00:55"]

1. b3 {[%clk 0:03:00]}  e5 {[%clk 0:02:57]} 2. Bb2 {[%clk 0:03:01]}  Nc6 {[%clk 0:02:57]} 3. e3 {[%clk 0:03:00]}  Nf6 {[%clk 0:02:55]} 4. Bb5 {[%clk 0:03:00]}  Bd6 {[%clk 0:02:54]} 5. Na3 {[%clk 0:03:00]}  Na5 {[%clk 0:02:54]} 6. Nf3 {[%clk 0:02:46]}  e4 {[%clk 0:02:43]} 7. Nd4 {[%clk 0:02:46]}  O-O {[%clk 0:02:43]} 8. Nf5 {[%clk 0:02:37]}  Bxa3 {[%clk 0:02:42]} 9. Bxa3 {[%clk 0:02:36]}  d6 {[%clk 0:02:43]} 10. Ng3 {[%clk 0:02:34]}  Bg4 {[%clk 0:02:39]} 11. Be2 {[%clk 0:02:31]}  Bxe2 {[%clk 0:02:37]} 12. Qxe2 {[%clk 0:02:32]}  Re8 {[%clk 0:02:32]} 13. O-O-O {[%clk 0:02:30]}  Nc6 {[%clk 0:02:32]} 14. Bb2 {[%clk 0:02:27]}  a5 {[%clk 0:02:32]} 15. a4 {[%clk 0:02:28]}  Ne5 {[%clk 0:02:29]} 16. f3 {[%clk 0:02:27]}  exf3 {[%clk 0:02:27]} 17. gxf3 {[%clk 0:02:27]}  c6 {[%clk 0:02:19]} 18. Rhg1 {[%clk 0:02:28]}  Ng6 {[%clk 0:02:15]} 19. Nf5 {[%clk 0:02:16]}  b5 {[%clk 0:02:13]} 20. axb5 {[%clk 0:02:06]}  a4 {[%clk 0:02:13]} 21. bxc6 {[%clk 0:01:25]}  axb3 {[%clk 0:02:13]} 22. cxb3 {[%clk 0:01:26]}  Qa5 {[%clk 0:01:33]} 23. Qd3 {[%clk 0:01:03]}  Rec8 {[%clk 0:01:03]} 24. Kb1 {[%clk 0:01:02]}  Qa2+ {[%clk 0:00:59]} 25. Kc1 {[%clk 0:00:59]}  Rxc6+ {[%clk 0:00:59]} 26. Bc3 {[%clk 0:00:59]}  Qxb3 {[%clk 0:00:54]} 27. Qb1 {[%clk 0:00:19]}  Rxc3+ {[%clk 0:00:53]} 28. dxc3 {[%clk 0:00:19]}  Qxc3+ {[%clk 0:00:54]} 29. Qc2 {[%clk 0:00:19]}  Ra1# {[%clk 0:00:55]} 0-1


[Site "https://www.chess.com"]

[Event "Titled Tuesday Blitz March 14 Early 2023"]
[White "Kim, Sergey"]
[Black "Xu, Xiangyu"]
[WhiteFideId "13700570"]
[BlackFideId "8608288"]
[WhiteElo "2629"]
[BlackElo "2477"]
[Result "0-1"]
[Round "02"]
[TimeControl "180+2"]
[Date "2023.03.14"]
[WhiteClock "0:00:06"]
[BlackClock "0:00:32"]

1. d4 {[%clk 0:02:56]}  Nf6 {[%clk 0:02:59]} 2. c4 {[%clk 0:02:56]}  e6 {[%clk 0:02:57]} 3. Nc3 {[%clk 0:02:56]}  Bb4 {[%clk 0:02:57]} 4. Qc2 {[%clk 0:02:56]}  O-O {[%clk 0:02:57]} 5. a3 {[%clk 0:02:57]}  Bxc3+ {[%clk 0:02:57]} 6. Qxc3 {[%clk 0:02:57]}  d5 {[%clk 0:02:55]} 7. Nf3 {[%clk 0:02:56]}  dxc4 {[%clk 0:02:53]} 8. Qxc4 {[%clk 0:02:56]}  b6 {[%clk 0:02:53]} 9. g3 {[%clk 0:02:56]}  Ba6 {[%clk 0:02:48]} 10. Qc2 {[%clk 0:02:55]}  Bb7 {[%clk 0:02:47]} 11. Bg2 {[%clk 0:02:54]}  Nbd7 {[%clk 0:02:43]} 12. O-O {[%clk 0:02:52]}  c5 {[%clk 0:02:42]} 13. Rd1 {[%clk 0:02:52]}  Rc8 {[%clk 0:02:41]} 14. dxc5 {[%clk 0:02:46]}  Rxc5 {[%clk 0:02:42]} 15. Qa4 {[%clk 0:02:45]}  Qa8 {[%clk 0:02:39]} 16. Qh4 {[%clk 0:02:19]}  h6 {[%clk 0:02:36]} 17. Be3 {[%clk 0:02:13]}  Rd5 {[%clk 0:02:09]} 18. Rxd5 {[%clk 0:01:59]}  Bxd5 {[%clk 0:02:10]} 19. Bd4 {[%clk 0:01:49]}  Rc8 {[%clk 0:02:09]} 20. Bc3 {[%clk 0:01:48]}  Ne4 {[%clk 0:02:01]} 21. Bd4 {[%clk 0:01:44]}  Nd6 {[%clk 0:01:59]} 22. Qf4 {[%clk 0:01:01]}  Nf5 {[%clk 0:01:54]} 23. Bc3 {[%clk 0:00:57]}  Rc4 {[%clk 0:01:51]} 24. Qd2 {[%clk 0:00:56]}  Nc5 {[%clk 0:01:38]} 25. Rd1 {[%clk 0:00:42]}  Ne4 {[%clk 0:01:37]} 26. Qe1 {[%clk 0:00:39]}  Nxc3 {[%clk 0:01:36]} 27. bxc3 {[%clk 0:00:39]}  Ra4 {[%clk 0:01:35]} 28. Ra1 {[%clk 0:00:38]}  Qc8 {[%clk 0:01:30]} 29. Qd2 {[%clk 0:00:35]}  Qc5 {[%clk 0:01:30]} 30. Qb2 {[%clk 0:00:30]}  Nd6 {[%clk 0:01:28]} 31. Nd2 {[%clk 0:00:28]}  Bxg2 {[%clk 0:01:27]} 32. Kxg2 {[%clk 0:00:28]}  Nb5 {[%clk 0:01:20]} 33. c4 {[%clk 0:00:26]}  Nd6 {[%clk 0:01:02]} 34. Qb3 {[%clk 0:00:19]}  Qc6+ {[%clk 0:01:01]} 35. Kg1 {[%clk 0:00:18]}  Nxc4 {[%clk 0:01:02]} 36. Nxc4 {[%clk 0:00:18]}  Rxc4 {[%clk 0:01:03]} 37. Qe3 {[%clk 0:00:17]}  a5 {[%clk 0:00:44]} 38. Rd1 {[%clk 0:00:16]}  b5 {[%clk 0:00:43]} 39. h3 {[%clk 0:00:13]}  Rc3 {[%clk 0:00:39]} 40. Qe5 {[%clk 0:00:10]}  Rxa3 {[%clk 0:00:38]} 41. Rd8+ {[%clk 0:00:09]}  Kh7 {[%clk 0:00:38]} 42. Kh2 {[%clk 0:00:08]}  Qb6 {[%clk 0:00:32]} 43. e3 {[%clk 0:00:06]}  Qxd8 {[%clk 0:00:32]} 0-1


[Site "https://www.chess.com"]

[Event "Titled Tuesday Blitz March 14 Early 2023"]
[White "Maksimenko, Viktor"]
[Black "Salinas Herrera, Pablo"]
[WhiteFideId "13710478"]
[BlackFideId "3407128"]
[WhiteElo "2277"]
[BlackElo "2550"]
[Result "0-1"]
[Round "02"]
[TimeControl "180+2"]
[Date "2023.03.14"]
[WhiteClock "0:00:02"]
[BlackClock "0:00:15"]

1. d4 {[%clk 0:03:00]}  d5 {[%clk 0:02:59]} 2. c4 {[%clk 0:03:01]}  e6 {[%clk 0:02:57]} 3. Nf3 {[%clk 0:03:01]}  Nf6 {[%clk 0:02:57]} 4. g3 {[%clk 0:03:01]}  Be7 {[%clk 0:02:56]} 5. Bg2 {[%clk 0:03:01]}  O-O {[%clk 0:02:57]} 6. O-O {[%clk 0:02:56]}  c6 {[%clk 0:02:57]} 7. b3 {[%clk 0:02:51]}  b6 {[%clk 0:02:57]} 8. Nc3 {[%clk 0:02:50]}  a5 {[%clk 0:02:55]} 9. Nd2 {[%clk 0:02:50]}  Bb7 {[%clk 0:02:33]} 10. e4 {[%clk 0:02:48]}  dxe4 {[%clk 0:02:26]} 11. Ndxe4 {[%clk 0:02:47]}  Na6 {[%clk 0:02:26]} 12. h4 {[%clk 0:02:36]}  h6 {[%clk 0:02:24]} 13. Bb2 {[%clk 0:02:32]}  Qc7 {[%clk 0:02:18]} 14. Nxf6+ {[%clk 0:02:26]}  Bxf6 {[%clk 0:02:18]} 15. Ne4 {[%clk 0:02:24]}  Be7 {[%clk 0:02:19]} 16. Qe2 {[%clk 0:02:18]}  c5 {[%clk 0:02:12]} 17. d5 {[%clk 0:02:06]}  exd5 {[%clk 0:02:12]} 18. cxd5 {[%clk 0:02:06]}  Bxd5 {[%clk 0:02:12]} 19. Qg4 {[%clk 0:01:37]}  g6 {[%clk 0:02:13]} 20. h5 {[%clk 0:01:33]}  Be6 {[%clk 0:01:49]} 21. Qf3 {[%clk 0:00:59]}  Bf5 {[%clk 0:00:51]} 22. Qc3 {[%clk 0:00:55]}  f6 {[%clk 0:00:48]} 23. Rfe1 {[%clk 0:00:38]}  Nb4 {[%clk 0:00:47]} 24. Rad1 {[%clk 0:00:30]}  Rad8 {[%clk 0:00:46]} 25. a3 {[%clk 0:00:25]}  Nc6 {[%clk 0:00:46]} 26. g4 {[%clk 0:00:23]}  Bxg4 {[%clk 0:00:44]} 27. hxg6 {[%clk 0:00:23]}  Nd4 {[%clk 0:00:40]} 28. Rd2 {[%clk 0:00:21]}  f5 {[%clk 0:00:35]} 29. Ng3 {[%clk 0:00:19]}  Bf6 {[%clk 0:00:35]} 30. Qc1 {[%clk 0:00:17]}  Qf4 {[%clk 0:00:31]} 31. Qc4+ {[%clk 0:00:11]}  Kh8 {[%clk 0:00:31]} 32. Rd3 {[%clk 0:00:11]}  Qg5 {[%clk 0:00:22]} 33. b4 {[%clk 0:00:07]}  axb4 {[%clk 0:00:22]} 34. axb4 {[%clk 0:00:08]}  Rc8 {[%clk 0:00:21]} 35. bxc5 {[%clk 0:00:08]}  bxc5 {[%clk 0:00:22]} 36. Bc1 {[%clk 0:00:06]}  Qxg6 {[%clk 0:00:22]} 37. Ra3 {[%clk 0:00:05]}  Bg7 {[%clk 0:00:22]} 38. Ra6 {[%clk 0:00:04]}  Rf6 {[%clk 0:00:20]} 39. Ra7 {[%clk 0:00:04]}  Re6 {[%clk 0:00:19]} 40. Rxe6 {[%clk 0:00:04]}  Qxe6 {[%clk 0:00:20]} 41. Qxe6 {[%clk 0:00:03]}  Nxe6 {[%clk 0:00:21]} 42. Bd5 {[%clk 0:00:03]}  Nd4 {[%clk 0:00:20]} 43. Kg2 {[%clk 0:00:02]}  c4 {[%clk 0:00:19]} 44. f3 {[%clk 0:00:03]}  f4 {[%clk 0:00:15]} 45. fxg4 {[%clk 0:00:02]}  fxg3 {[%clk 0:00:16]} 46. Kxg3 {[%clk 0:00:02]}  Ne2+ {[%clk 0:00:16]} 47. Kh4 {[%clk 0:00:02]}  Nxc1 {[%clk 0:00:17]} 48. Kh5 {[%clk 0:00:02]}  Rd8 {[%clk 0:00:15]} 49. Kg6 {[%clk 0:00:02]}  Rd6+ {[%clk 0:00:15]} 50. Kf7 {[%clk 0:00:02]}  Rxd5 {[%clk 0:00:14]} 51. Kg6 {[%clk 0:00:02]}  Rg5+ {[%clk 0:00:14]} 52. Kf7 {[%clk 0:00:03]}  Kh7 {[%clk 0:00:15]} 53. Ra5 {[%clk 0:00:02]}  Rxa5 {[%clk 0:00:15]} 0-1


[Site "https://www.chess.com"]

[Event "Titled Tuesday Blitz March 14 Early 2023"]
[White "Ider, Borya"]
[Black "Prokofiev, Valentyn"]
[WhiteFideId "4901134"]
[BlackFideId "14160161"]
[WhiteElo "2512"]
[BlackElo "2260"]
[Result "1/2-1/2"]
[Round "02"]
[TimeControl "180+2"]
[Date "2023.03.14"]
[WhiteClock "0:00:09"]
[BlackClock "0:00:14"]

1. d4 {[%clk 0:03:00]}  Nf6 {[%clk 0:03:00]} 2. Nf3 {[%clk 0:03:00]}  d5 {[%clk 0:02:58]} 3. c4 {[%clk 0:03:00]}  e6 {[%clk 0:02:58]} 4. g3 {[%clk 0:03:00]}  Be7 {[%clk 0:02:58]} 5. Bg2 {[%clk 0:03:00]}  O-O {[%clk 0:02:59]} 6. O-O {[%clk 0:02:59]}  dxc4 {[%clk 0:02:59]} 7. Ne5 {[%clk 0:02:58]}  Nc6 {[%clk 0:02:56]} 8. Bxc6 {[%clk 0:02:57]}  bxc6 {[%clk 0:02:57]} 9. Nxc6 {[%clk 0:02:58]}  Qe8 {[%clk 0:02:57]} 10. Nxe7+ {[%clk 0:02:59]}  Qxe7 {[%clk 0:02:58]} 11. Qa4 {[%clk 0:02:59]}  c5 {[%clk 0:02:35]} 12. Qa3 {[%clk 0:02:59]}  Bb7 {[%clk 0:02:30]} 13. Qxc5 {[%clk 0:02:53]}  Qxc5 {[%clk 0:02:27]} 14. dxc5 {[%clk 0:02:53]}  Rfc8 {[%clk 0:02:27]} 15. Nc3 {[%clk 0:02:41]}  Rxc5 {[%clk 0:02:27]} 16. Be3 {[%clk 0:02:36]}  Rcc8 {[%clk 0:02:17]} 17. Rfd1 {[%clk 0:02:36]}  Nd5 {[%clk 0:02:17]} 18. Bd4 {[%clk 0:02:33]}  f6 {[%clk 0:02:09]} 19. f3 {[%clk 0:02:31]}  Kf7 {[%clk 0:02:07]} 20. Kf2 {[%clk 0:02:30]}  a5 {[%clk 0:02:04]} 21. a3 {[%clk 0:02:28]}  Bc6 {[%clk 0:01:59]} 22. e4 {[%clk 0:02:13]}  Ne7 {[%clk 0:01:56]} 23. Rd2 {[%clk 0:02:06]}  Rab8 {[%clk 0:01:53]} 24. Rad1 {[%clk 0:02:00]}  Rb3 {[%clk 0:01:53]} 25. Ne2 {[%clk 0:01:52]}  f5 {[%clk 0:01:49]} 26. Bc3 {[%clk 0:01:49]}  fxe4 {[%clk 0:01:45]} 27. fxe4 {[%clk 0:01:45]}  Bxe4 {[%clk 0:01:42]} 28. Rd7 {[%clk 0:01:45]}  Bd5 {[%clk 0:01:39]} 29. Nf4 {[%clk 0:01:40]}  Ke8 {[%clk 0:01:10]} 30. Ra7 {[%clk 0:01:27]}  Rcb8 {[%clk 0:01:05]} 31. Rd2 {[%clk 0:01:18]}  g6 {[%clk 0:00:48]} 32. Rxa5 {[%clk 0:01:15]}  R3b5 {[%clk 0:00:40]} 33. Ra6 {[%clk 0:01:08]}  R5b6 {[%clk 0:00:39]} 34. Ra7 {[%clk 0:01:02]}  R6b7 {[%clk 0:00:38]} 35. Ra5 {[%clk 0:00:58]}  Rb5 {[%clk 0:00:38]} 36. Rxb5 {[%clk 0:00:57]}  Rxb5 {[%clk 0:00:39]} 37. a4 {[%clk 0:00:56]}  Rb8 {[%clk 0:00:36]} 38. a5 {[%clk 0:00:55]}  Kd7 {[%clk 0:00:34]} 39. g4 {[%clk 0:00:39]}  Kc6 {[%clk 0:00:34]} 40. Kg3 {[%clk 0:00:37]}  Rf8 {[%clk 0:00:29]} 41. h4 {[%clk 0:00:35]}  Ra8 {[%clk 0:00:23]} 42. Re2 {[%clk 0:00:34]}  Kd7 {[%clk 0:00:22]} 43. h5 {[%clk 0:00:35]}  g5 {[%clk 0:00:20]} 44. Nh3 {[%clk 0:00:29]}  h6 {[%clk 0:00:19]} 45. Bg7 {[%clk 0:00:29]}  Ng8 {[%clk 0:00:20]} 46. Bc3 {[%clk 0:00:26]}  Ne7 {[%clk 0:00:14]} 47. Nf2 {[%clk 0:00:26]}  Rg8 {[%clk 0:00:13]} 48. Ne4 {[%clk 0:00:25]}  Ra8 {[%clk 0:00:08]} 49. Bg7 {[%clk 0:00:22]}  Ng8 {[%clk 0:00:07]} 50. Bc3 {[%clk 0:00:21]}  Ne7 {[%clk 0:00:07]} 51. Nf6+ {[%clk 0:00:20]}  Kc6 {[%clk 0:00:08]} 52. Nxd5 {[%clk 0:00:19]}  Nxd5 {[%clk 0:00:08]} 53. Rxe6+ {[%clk 0:00:19]}  Kd7 {[%clk 0:00:08]} 54. Rxh6 {[%clk 0:00:19]}  Nxc3 {[%clk 0:00:08]} 55. bxc3 {[%clk 0:00:20]}  Rxa5 {[%clk 0:00:09]} 56. Rg6 {[%clk 0:00:20]}  Ra3 {[%clk 0:00:09]} 57. Rxg5 {[%clk 0:00:20]}  Rxc3+ {[%clk 0:00:09]} 58. Kh4 {[%clk 0:00:21]}  Rc1 {[%clk 0:00:10]} 59. Rc5 {[%clk 0:00:21]}  Kd6 {[%clk 0:00:10]} 60. Rc8 {[%clk 0:00:21]}  Kd7 {[%clk 0:00:11]} 61. Ra8 {[%clk 0:00:22]}  c3 {[%clk 0:00:11]} 62. Kg5 {[%clk 0:00:22]}  c2 {[%clk 0:00:11]} 63. Ra2 {[%clk 0:00:21]}  Kd6 {[%clk 0:00:11]} 64. h6 {[%clk 0:00:21]}  Kd5 {[%clk 0:00:12]} 65. Kg6 {[%clk 0:00:19]}  Rg1 {[%clk 0:00:07]} 66. Rxc2 {[%clk 0:00:17]}  Rxg4+ {[%clk 0:00:07]} 67. Kf6 {[%clk 0:00:18]}  Rh4 {[%clk 0:00:08]} 68. Kg7 {[%clk 0:00:18]}  Rg4+ {[%clk 0:00:08]} 69. Kf7 {[%clk 0:00:19]}  Rh4 {[%clk 0:00:08]} 70. Kg7 {[%clk 0:00:18]}  Rg4+ {[%clk 0:00:09]} 71. Kh8 {[%clk 0:00:18]}  Ke6 {[%clk 0:00:09]} 72. Rf2 {[%clk 0:00:19]}  Ke7 {[%clk 0:00:09]} 73. Rf5 {[%clk 0:00:17]}  Rg3 {[%clk 0:00:09]} 74. Kh7 {[%clk 0:00:14]}  Rg4 {[%clk 0:00:09]} 75. Ra5 {[%clk 0:00:10]}  Rg3 {[%clk 0:00:09]} 76. Ra8 {[%clk 0:00:10]}  Kf7 {[%clk 0:00:10]} 77. Ra7+ {[%clk 0:00:10]}  Kf8 {[%clk 0:00:10]} 78. Rg7 {[%clk 0:00:10]}  Ra3 {[%clk 0:00:10]} 79. Rg1 {[%clk 0:00:10]}  Rf3 {[%clk 0:00:08]} 80. Kh8 {[%clk 0:00:08]}  Rf6 {[%clk 0:00:08]} 81. h7 {[%clk 0:00:08]}  Rf2 {[%clk 0:00:08]} 82. Ra1 {[%clk 0:00:07]}  Rf3 {[%clk 0:00:08]} 83. Ra8+ {[%clk 0:00:07]}  Kf7 {[%clk 0:00:08]} 84. Ra7+ {[%clk 0:00:08]}  Kf8 {[%clk 0:00:09]} 85. Rb7 {[%clk 0:00:08]}  Rf4 {[%clk 0:00:08]} 86. Rg7 {[%clk 0:00:08]}  Rf1 {[%clk 0:00:08]} 87. Rg8+ {[%clk 0:00:08]}  Kf7 {[%clk 0:00:09]} 88. Rb8 {[%clk 0:00:06]}  Rf2 {[%clk 0:00:08]} 89. Rc8 {[%clk 0:00:07]}  Rf3 {[%clk 0:00:09]} 90. Rb8 {[%clk 0:00:07]}  Rf4 {[%clk 0:00:09]} 91. Rc8 {[%clk 0:00:04]}  Rf5 {[%clk 0:00:09]} 92. Rb8 {[%clk 0:00:04]}  Rf3 {[%clk 0:00:09]} 93. Rc8 {[%clk 0:00:05]}  Rf2 {[%clk 0:00:10]} 94. Rb8 {[%clk 0:00:05]}  Rf1 {[%clk 0:00:10]} 95. Rc8 {[%clk 0:00:06]}  Rf2 {[%clk 0:00:11]} 96. Rb8 {[%clk 0:00:06]}  Rf3 {[%clk 0:00:11]} 97. Rc8 {[%clk 0:00:07]}  Rf4 {[%clk 0:00:12]} 98. Rb8 {[%clk 0:00:07]}  Rf5 {[%clk 0:00:13]} 99. Rc8 {[%clk 0:00:08]}  Rf6 {[%clk 0:00:13]} 100. Rb8 {[%clk 0:00:08]}  Rf1 {[%clk 0:00:13]} 101. Rb7+ {[%clk 0:00:08]}  Kf8 {[%clk 0:00:13]} 102. Rb8+ {[%clk 0:00:09]}  Kf7 {[%clk 0:00:14]} 1/2-1/2


[Site "https://www.chess.com"]

[Event "Titled Tuesday Blitz March 14 Early 2023"]
[White "Garv Gaur"]
[Black "Gupta, Abhijeet"]
[WhiteFideId "45030839"]
[BlackFideId "5010608"]
[WhiteElo "2068"]
[BlackElo "2528"]
[Result "0-1"]
[Round "02"]
[TimeControl "180+2"]
[Date "2023.03.14"]
[WhiteClock "0:00:11"]
[BlackClock "0:01:10"]

1. Nf3 {[%clk 0:02:57]}  Nf6 {[%clk 0:02:59]} 2. g3 {[%clk 0:02:56]}  g6 {[%clk 0:03:00]} 3. Bg2 {[%clk 0:02:56]}  Bg7 {[%clk 0:03:01]} 4. O-O {[%clk 0:02:56]}  O-O {[%clk 0:03:01]} 5. d4 {[%clk 0:02:55]}  d6 {[%clk 0:03:02]} 6. c4 {[%clk 0:02:55]}  c5 {[%clk 0:03:00]} 7. d5 {[%clk 0:02:50]}  e6 {[%clk 0:02:59]} 8. Nc3 {[%clk 0:02:46]}  Re8 {[%clk 0:02:58]} 9. Nd2 {[%clk 0:02:36]}  exd5 {[%clk 0:02:57]} 10. cxd5 {[%clk 0:02:37]}  a6 {[%clk 0:02:57]} 11. a4 {[%clk 0:02:36]}  Nbd7 {[%clk 0:02:57]} 12. Nc4 {[%clk 0:02:35]}  Ne5 {[%clk 0:02:56]} 13. Nxe5 {[%clk 0:02:35]}  Rxe5 {[%clk 0:02:56]} 14. Bf4 {[%clk 0:02:36]}  Re8 {[%clk 0:02:55]} 15. h3 {[%clk 0:02:30]}  h6 {[%clk 0:02:53]} 16. Re1 {[%clk 0:02:27]}  g5 {[%clk 0:02:46]} 17. Bd2 {[%clk 0:02:25]}  Bd7 {[%clk 0:02:46]} 18. e4 {[%clk 0:02:14]}  b5 {[%clk 0:02:44]} 19. axb5 {[%clk 0:02:10]}  axb5 {[%clk 0:02:45]} 20. Rxa8 {[%clk 0:02:08]}  Qxa8 {[%clk 0:02:46]} 21. Qc2 {[%clk 0:01:43]}  b4 {[%clk 0:02:42]} 22. Nd1 {[%clk 0:01:43]}  Qa2 {[%clk 0:02:39]} 23. e5 {[%clk 0:01:38]}  Ba4 {[%clk 0:02:30]} 24. Qc1 {[%clk 0:01:34]}  Nd7 {[%clk 0:02:14]} 25. exd6 {[%clk 0:01:26]}  Rxe1+ {[%clk 0:02:14]} 26. Bxe1 {[%clk 0:01:27]}  Bd4 {[%clk 0:02:00]} 27. Kh2 {[%clk 0:01:15]}  Qb3 {[%clk 0:01:52]} 28. Ne3 {[%clk 0:01:12]}  Qxb2 {[%clk 0:01:48]} 29. Qc4 {[%clk 0:01:00]}  Ne5 {[%clk 0:01:22]} 30. Qa6 {[%clk 0:00:58]}  Bd7 {[%clk 0:01:22]} 31. Nc4 {[%clk 0:00:23]}  Qe2 {[%clk 0:01:12]} 32. Qa8+ {[%clk 0:00:21]}  Kg7 {[%clk 0:01:13]} 33. Nxe5 {[%clk 0:00:20]}  Qxe5 {[%clk 0:01:12]} 34. Bd2 {[%clk 0:00:19]}  Bxf2 {[%clk 0:01:11]} 35. Qd8 {[%clk 0:00:12]}  Bxg3+ {[%clk 0:01:10]} 36. Kh1 {[%clk 0:00:11]}  Qa1+ {[%clk 0:01:10]} 0-1


[Site "https://www.chess.com"]

[Event "Titled Tuesday Blitz March 14 Early 2023"]
[White "Vakhlamov, Igor L."]
[Black "Kalashian, David"]
[WhiteFideId "24126748"]
[BlackFideId "13302418"]
[WhiteElo "2400"]
[BlackElo "2490"]
[Result "1/2-1/2"]
[Round "02"]
[TimeControl "180+2"]
[Date "2023.03.14"]
[WhiteClock "0:01:08"]
[BlackClock "0:01:21"]

1. e4 {[%clk 0:02:27]}  c6 {[%clk 0:02:58]} 2. d4 {[%clk 0:02:22]}  g6 {[%clk 0:02:59]} 3. Nf3 {[%clk 0:02:22]}  Bg7 {[%clk 0:02:59]} 4. Nc3 {[%clk 0:02:18]}  d6 {[%clk 0:02:58]} 5. Bc4 {[%clk 0:02:15]}  Nf6 {[%clk 0:02:57]} 6. O-O {[%clk 0:02:15]}  O-O {[%clk 0:02:55]} 7. Re1 {[%clk 0:02:12]}  Nxe4 {[%clk 0:02:53]} 8. Nxe4 {[%clk 0:02:11]}  d5 {[%clk 0:02:52]} 9. Bb3 {[%clk 0:02:12]}  dxe4 {[%clk 0:02:52]} 10. Rxe4 {[%clk 0:02:13]}  Bf5 {[%clk 0:02:50]} 11. Re1 {[%clk 0:02:10]}  Nd7 {[%clk 0:02:48]} 12. c3 {[%clk 0:02:09]}  Bg4 {[%clk 0:02:40]} 13. h3 {[%clk 0:02:09]}  Bxf3 {[%clk 0:02:38]} 14. Qxf3 {[%clk 0:02:10]}  e5 {[%clk 0:02:38]} 15. dxe5 {[%clk 0:02:02]}  Nxe5 {[%clk 0:02:38]} 16. Qg3 {[%clk 0:01:59]}  Nd3 {[%clk 0:02:29]} 17. Rd1 {[%clk 0:01:55]}  Nxc1 {[%clk 0:02:28]} 18. Raxc1 {[%clk 0:01:53]}  Qe7 {[%clk 0:02:20]} 19. Re1 {[%clk 0:01:51]}  Qc5 {[%clk 0:02:12]} 20. Rcd1 {[%clk 0:01:48]}  a5 {[%clk 0:02:05]} 21. Qf4 {[%clk 0:01:39]}  b5 {[%clk 0:02:00]} 22. a4 {[%clk 0:01:38]}  Ra7 {[%clk 0:01:50]} 23. Qd6 {[%clk 0:01:34]}  Qxd6 {[%clk 0:01:44]} 24. Rxd6 {[%clk 0:01:34]}  Rb7 {[%clk 0:01:45]} 25. Re2 {[%clk 0:01:33]}  Rfb8 {[%clk 0:01:34]} 26. Rxc6 {[%clk 0:01:16]}  bxa4 {[%clk 0:01:31]} 27. Bxa4 {[%clk 0:01:17]}  Rxb2 {[%clk 0:01:31]} 28. Rxb2 {[%clk 0:01:16]}  Rxb2 {[%clk 0:01:32]} 29. Rc8+ {[%clk 0:01:16]}  Bf8 {[%clk 0:01:30]} 30. Ra8 {[%clk 0:01:15]}  Ra2 {[%clk 0:01:25]} 31. Rxa5 {[%clk 0:01:10]}  Bd6 {[%clk 0:01:21]} 32. g3 {[%clk 0:01:08]} 1/2-1/2


[Site "https://www.chess.com"]